[Event "Live Chess"]
[Site "Chess.com"]
[Date "2023.05.21"]
[Round "-"]
[White "Greenbecker"]
[Black "Keithdfg"]
[Result "0-1"]
[WhiteElo "1650"]
[BlackElo "1822"]
[TimeControl "300"]
[EndTime "3:39:52 PDT"]
[Termination "Keithdfg won by resignation"]

1. e4 {[%clk 0:04:58.5]} 1... d6 {[%clk 0:04:59.6]} 2. d4 {[%clk 0:04:57]} 2...
Nf6 {[%clk 0:04:58.9]} 3. Nc3 {[%clk 0:04:55.3]} 3... Nbd7 {[%clk 0:04:55.9]} 4.
Nf3 {[%clk 0:04:54.2]} 4... e5 {[%clk 0:04:55.8]} 5. dxe5 {[%clk 0:04:53]} 5...
dxe5 {[%clk 0:04:54.4]} 6. Bc4 {[%clk 0:04:51.6]} 6... h6 {[%clk 0:04:53.3]} 7.
O-O {[%clk 0:04:50.1]} 7... c6 {[%clk 0:04:45.8]} 8. Re1 {[%clk 0:04:49.1]} 8...
Qc7 {[%clk 0:04:43.5]} 9. Be3 {[%clk 0:04:45.8]} 9... b5 {[%clk 0:04:42.1]} 10.
Bb3 {[%clk 0:04:44]} 10... a5 {[%clk 0:04:42]} 11. a3 {[%clk 0:04:37.7]} 11...
Nc5 {[%clk 0:04:40.7]} 12. Bxc5 {[%clk 0:04:33]} 12... Bxc5 {[%clk 0:04:39.2]}
13. Qe2 {[%clk 0:04:23.1]} 13... Bg4 {[%clk 0:04:35.2]} 14. h3 {[%clk
0:04:21.6]} 14... Bh5 {[%clk 0:04:33.5]} 15. Rad1 {[%clk 0:04:18.9]} 15... O-O
{[%clk 0:04:27.7]} 16. Rd3 {[%clk 0:04:10.6]} 16... Bg6 {[%clk 0:04:08.3]} 17.
Nh4 {[%clk 0:04:05.2]} 17... Bh7 {[%clk 0:04:01.3]} 18. Nf5 {[%clk 0:04:01.3]}
18... Bxf5 {[%clk 0:03:58.8]} 19. exf5 {[%clk 0:04:00.4]} 19... Bd4 {[%clk
0:03:52.1]} 20. Nd1 {[%clk 0:03:45.1]} 20... a4 {[%clk 0:03:39.1]} 21. Ba2
{[%clk 0:03:41.6]} 21... Rfe8 {[%clk 0:03:35.6]} 22. c3 {[%clk 0:03:39.7]} 22...
Bb6 {[%clk 0:03:28]} 23. Ne3 {[%clk 0:03:32.5]} 23... e4 {[%clk 0:03:25.2]} 24.
Rdd1 {[%clk 0:03:26.5]} 24... Qe5 {[%clk 0:03:22.1]} 25. Ng4 {[%clk 0:03:18.8]}
25... Nxg4 {[%clk 0:03:16.4]} 26. Qxg4 {[%clk 0:03:06.7]} 26... Rad8 {[%clk
0:03:02.1]} 27. Rxd8 {[%clk 0:03:02.7]} 27... Rxd8 {[%clk 0:03:00.4]} 28. Qxe4
{[%clk 0:02:58.1]} 28... Qxe4 {[%clk 0:02:56.7]} 29. Rxe4 {[%clk 0:02:56.4]}
29... Rd1+ {[%clk 0:02:51.8]} 30. Kh2 {[%clk 0:02:55.4]} 30... Bxf2 {[%clk
0:02:47.7]} 31. Re7 {[%clk 0:02:43.9]} 31... h5 {[%clk 0:02:44.9]} 32. Bxf7+
{[%clk 0:02:36.9]} 32... Kf8 {[%clk 0:02:40]} 33. Re2 {[%clk 0:02:29.2]} 33...
Bg1+ {[%clk 0:02:30.1]} 34. Kg3 {[%clk 0:02:25.8]} 34... Kxf7 {[%clk 0:02:28.8]}
35. Kh4 {[%clk 0:02:20.3]} 35... Rd5 {[%clk 0:02:20]} 36. g4 {[%clk 0:02:16.1]}
36... hxg4 {[%clk 0:02:16.4]} 37. hxg4 {[%clk 0:02:15.2]} 37... Bc5 {[%clk
0:02:11.2]} 38. g5 {[%clk 0:02:07.9]} 38... Be7 {[%clk 0:02:06.5]} 39. Kg4
{[%clk 0:02:05.1]} 39... Rd1 {[%clk 0:02:01.9]} 40. g6+ {[%clk 0:01:57.4]} 40...
Kf8 {[%clk 0:02:00.2]} 41. Rh2 {[%clk 0:01:51.8]} 41... Rg1+ {[%clk 0:01:55.3]}
42. Kf3 {[%clk 0:01:49.8]} 42... Bf6 {[%clk 0:01:51.4]} 43. Ke4 {[%clk
0:01:38.3]} 43... Rg4+ {[%clk 0:01:47.4]} 44. Kf3 {[%clk 0:01:34]} 44... Rg5
{[%clk 0:01:45.2]} 45. Kf4 {[%clk 0:01:28.2]} 45... Ke7 {[%clk 0:01:37.8]} 46.
Re2+ {[%clk 0:01:25.7]} 46... Kd7 {[%clk 0:01:36.1]} 47. Re6 {[%clk 0:01:18.2]}
47... Rg1 {[%clk 0:01:33.7]} 48. Re2 {[%clk 0:01:09.6]} 48... Rf1+ {[%clk
0:01:30.9]} 49. Kg4 {[%clk 0:01:04.7]} 49... Kd6 {[%clk 0:01:27.2]} 50. Re6+
{[%clk 0:01:01.9]} 50... Kc5 {[%clk 0:01:24.2]} 51. Re2 {[%clk 0:00:49.9]} 51...
Kc4 {[%clk 0:01:17.9]} 52. Rc2 {[%clk 0:00:47.7]} 52... Rg1+ {[%clk 0:01:13.7]}
53. Kf3 {[%clk 0:00:46]} 53... Kd3 {[%clk 0:01:08.3]} 54. Rh2 {[%clk 0:00:37.8]}
54... Be5 {[%clk 0:01:01.6]} 55. Rh8 {[%clk 0:00:26.7]} 55... Rf1+ {[%clk
0:00:57.2]} 56. Kg2 {[%clk 0:00:24.2]} 56... Rxf5 {[%clk 0:00:55]} 57. Rc8
{[%clk 0:00:23]} 57... Rf6 {[%clk 0:00:52.7]} 0-1

[Event "Live Chess"]
[Site "Chess.com"]
[Date "2023.05.21"]
[Round "-"]
[White "manthanit"]
[Black "RockTroll"]
[Result "0-1"]
[WhiteElo "1096"]
[BlackElo "2234"]
[TimeControl "300"]
[EndTime "3:40:01 PDT"]
[Termination "RockTroll won by resignation"]

1. e4 {[%clk 0:04:58.4]} 1... d5 {[%clk 0:04:57.8]} 2. exd5 {[%clk 0:04:57.4]}
2... Qxd5 {[%clk 0:04:57.7]} 3. Nf3 {[%clk 0:04:56.8]} 3... Nc6 {[%clk
0:04:55.1]} 4. Nc3 {[%clk 0:04:55.6]} 4... Qh5 {[%clk 0:04:44.8]} 5. h3 {[%clk
0:04:54.6]} 5... e5 {[%clk 0:04:42.7]} 6. Be2 {[%clk 0:04:52.7]} 6... Qg6 {[%clk
0:04:39.5]} 7. O-O {[%clk 0:04:50.7]} 7... Bxh3 {[%clk 0:04:38.4]} 8. Nh4 {[%clk
0:04:30]} 8... Qg5 {[%clk 0:04:33.9]} 9. g3 {[%clk 0:03:37.9]} 9... Bxf1 {[%clk
0:04:31.7]} 10. Kxf1 {[%clk 0:03:37.5]} 10... O-O-O {[%clk 0:04:24.5]} 11. d3
{[%clk 0:03:36.6]} 11... Qe7 {[%clk 0:04:17]} 12. Ne4 {[%clk 0:03:30.2]} 12...
g6 {[%clk 0:04:14.5]} 13. Bg5 {[%clk 0:03:21.8]} 13... f6 {[%clk 0:04:13.3]} 14.
Be3 {[%clk 0:03:09.4]} 14... h6 {[%clk 0:04:11.8]} 15. Bg4+ {[%clk 0:03:05.3]}
15... f5 {[%clk 0:04:10.6]} 16. Bxf5+ {[%clk 0:03:04.5]} 16... gxf5 {[%clk
0:04:09.5]} 17. Nxf5 {[%clk 0:03:01.9]} 17... Qe6 {[%clk 0:04:07]} 18. Qg4
{[%clk 0:02:52.6]} 18... Kb8 {[%clk 0:04:03.8]} 19. Nc5 {[%clk 0:02:24.3]} 19...
Bxc5 {[%clk 0:03:58.1]} 20. Bxc5 {[%clk 0:02:22.6]} 20... Nf6 {[%clk 0:03:57.6]}
21. Qf3 {[%clk 0:02:14.5]} 21... e4 {[%clk 0:03:53.6]} 22. dxe4 {[%clk 0:02:12]}
22... Qxe4 {[%clk 0:03:52.8]} 23. Qxe4 {[%clk 0:02:00.4]} 23... Nxe4 {[%clk
0:03:51.9]} 24. Ne7 {[%clk 0:01:58.6]} 24... Nxc5 {[%clk 0:03:48.2]} 0-1

[Event "Live Chess"]
[Site "Chess.com"]
[Date "2023.05.21"]
[Round "-"]
[White "JoshMcK"]
[Black "YrrriKharkiv"]
[Result "0-1"]
[WhiteElo "1512"]
[BlackElo "2063"]
[TimeControl "300"]
[EndTime "3:40:17 PDT"]
[Termination "YrrriKharkiv won by resignation"]

1. e4 {[%clk 0:04:58.5]} 1... e6 {[%clk 0:04:58.8]} 2. d4 {[%clk 0:04:56.5]}
2... d5 {[%clk 0:04:58.4]} 3. Nc3 {[%clk 0:04:54]} 3... Nf6 {[%clk 0:04:56.9]}
4. e5 {[%clk 0:04:52.9]} 4... Nfd7 {[%clk 0:04:56.1]} 5. f4 {[%clk 0:04:51.1]}
5... c5 {[%clk 0:04:55.1]} 6. Nf3 {[%clk 0:04:49.4]} 6... Nc6 {[%clk 0:04:53.5]}
7. Be3 {[%clk 0:04:48.7]} 7... Qb6 {[%clk 0:04:50.8]} 8. Na4 {[%clk 0:04:24.2]}
8... Qa5+ {[%clk 0:04:49.4]} 9. Nc3 {[%clk 0:04:21.7]} 9... cxd4 {[%clk
0:04:46.6]} 10. Nxd4 {[%clk 0:04:19.3]} 10... Bb4 {[%clk 0:04:36.5]} 11. Bd2
{[%clk 0:04:14.4]} 11... Nxd4 {[%clk 0:04:33.6]} 0-1

[Event "Live Chess"]
[Site "Chess.com"]
[Date "2023.05.21"]
[Round "-"]
[White "JoRoSaR"]
[Black "gmnorfolk"]
[Result "1/2-1/2"]
[WhiteElo "1687"]
[BlackElo "2104"]
[TimeControl "300"]
[EndTime "3:40:28 PDT"]
[Termination "Game drawn by agreement"]

1. e4 {[%clk 0:04:59.3]} 1... c5 {[%clk 0:04:58.4]} 2. Nf3 {[%clk 0:04:57.5]}
2... d6 {[%clk 0:04:57.7]} 3. c3 {[%clk 0:04:56.1]} 3... Nf6 {[%clk 0:04:55.8]}
4. Be2 {[%clk 0:04:55.8]} 4... Nbd7 {[%clk 0:04:50.4]} 5. Qc2 {[%clk 0:04:53.8]}
5... e6 {[%clk 0:04:45]} 6. d4 {[%clk 0:04:53.2]} 6... cxd4 {[%clk 0:04:41.9]}
7. cxd4 {[%clk 0:04:53.1]} 7... d5 {[%clk 0:04:41]} 8. e5 {[%clk 0:04:51.9]}
8... Ne4 {[%clk 0:04:40.3]} 9. Nc3 {[%clk 0:04:51]} 9... Nxc3 {[%clk 0:04:37.7]}
10. bxc3 {[%clk 0:04:50]} 10... Be7 {[%clk 0:04:36]} 11. Qb3 {[%clk 0:04:49.2]}
11... O-O {[%clk 0:04:33.4]} 12. O-O {[%clk 0:04:48]} 12... Qb6 {[%clk
0:04:32.3]} 13. Rb1 {[%clk 0:04:45.2]} 13... Qxb3 {[%clk 0:04:31]} 14. Rxb3
{[%clk 0:04:44.4]} 14... b6 {[%clk 0:04:29.4]} 15. Bb5 {[%clk 0:04:41.3]} 15...
Rd8 {[%clk 0:04:25]} 16. Bc6 {[%clk 0:04:39.4]} 16... Rb8 {[%clk 0:04:24.2]} 17.
Ba3 {[%clk 0:04:38.2]} 17... Bxa3 {[%clk 0:04:20.8]} 18. Rxa3 {[%clk 0:04:37.7]}
18... a6 {[%clk 0:04:13.8]} 19. Rb1 {[%clk 0:04:35.5]} 19... b5 {[%clk
0:04:12.8]} 20. Bxd7 {[%clk 0:04:32.8]} 20... Rxd7 {[%clk 0:04:10.9]} 21. Rab3
{[%clk 0:04:25.2]} 21... Rc7 {[%clk 0:04:09.9]} 22. a4 {[%clk 0:04:23.6]} 22...
Bd7 {[%clk 0:04:07.8]} 23. axb5 {[%clk 0:04:22.7]} 23... Bxb5 {[%clk 0:04:04.1]}
24. Nd2 {[%clk 0:04:21.9]} 24... Rbc8 {[%clk 0:04:03.1]} 25. Rc1 {[%clk
0:04:19.2]} 25... Kf8 {[%clk 0:03:55.9]} 26. Nb1 {[%clk 0:04:18.4]} 26... Bc4
{[%clk 0:03:50.8]} 27. Ra3 {[%clk 0:04:16.1]} 27... Rb7 {[%clk 0:03:48.3]} 28.
Nd2 {[%clk 0:04:12.3]} 28... Bb5 {[%clk 0:03:46.6]} 29. f4 {[%clk 0:04:10]}
29... f6 {[%clk 0:03:42.5]} 30. Nf3 {[%clk 0:04:05]} 30... h6 {[%clk 0:03:41.5]}
31. Kf2 {[%clk 0:04:03.2]} 31... f5 {[%clk 0:03:37.1]} 32. h3 {[%clk 0:04:01.9]}
32... Kf7 {[%clk 0:03:34.8]} 33. g4 {[%clk 0:04:00.9]} 33... g6 {[%clk
0:03:32.7]} 34. gxf5 {[%clk 0:03:57.5]} 34... gxf5 {[%clk 0:03:30.7]} 35. Nd2
{[%clk 0:03:53.7]} 35... Bd3 {[%clk 0:03:25.1]} 36. Ra4 {[%clk 0:03:45.2]} 36...
Rb2 {[%clk 0:03:22.9]} 37. Ke3 {[%clk 0:03:43.7]} 37... Bb5 {[%clk 0:03:19.5]}
38. Ra3 {[%clk 0:03:40.2]} 38... Rg8 {[%clk 0:03:17.8]} 39. Rb3 {[%clk
0:03:32.5]} 39... Rg3+ {[%clk 0:03:03.9]} 40. Kf2 {[%clk 0:03:31.1]} 40... Rxb3
{[%clk 0:02:59.6]} 41. Kxg3 {[%clk 0:03:29.6]} 41... Rb2 {[%clk 0:02:56.5]} 42.
Nf1 {[%clk 0:03:27]} 42... Bxf1 {[%clk 0:02:50.9]} 43. Rxf1 {[%clk 0:03:25.8]}
43... Rc2 {[%clk 0:02:48.8]} 44. Ra1 {[%clk 0:03:23.1]} 44... Rxc3+ {[%clk
0:02:48.1]} 45. Kh4 {[%clk 0:03:22.5]} 45... Rf3 {[%clk 0:02:45.5]} 46. Rxa6
{[%clk 0:03:18.5]} 46... Rxf4+ {[%clk 0:02:44.5]} 47. Kh5 {[%clk 0:03:18.2]}
47... Rxd4 {[%clk 0:02:38.7]} 48. Kxh6 {[%clk 0:03:06.4]} 48... Rh4+ {[%clk
0:02:34]} 49. Kg5 {[%clk 0:02:58.3]} 49... Rxh3 {[%clk 0:02:33.3]} 50. Ra7+
{[%clk 0:02:57.5]} 50... Ke8 {[%clk 0:02:30.8]} 51. Kf6 {[%clk 0:02:56.9]} 51...
Rh6+ {[%clk 0:02:19.9]} 52. Kg7 {[%clk 0:02:51]} 52... Rh1 {[%clk 0:02:15.8]}
53. Kf6 {[%clk 0:02:50.5]} 53... f4 {[%clk 0:02:09.9]} 54. Kxe6 {[%clk
0:02:49.1]} 54... Kd8 {[%clk 0:02:08.6]} 55. Kxd5 {[%clk 0:02:47.5]} 55... f3
{[%clk 0:02:07.2]} 56. Ra2 {[%clk 0:02:45.9]} 56... Ke7 {[%clk 0:01:56.7]} 57.
Ra7+ {[%clk 0:02:43.8]} 57... Ke8 {[%clk 0:01:54.6]} 58. Ra2 {[%clk 0:02:37.3]}
58... Rh6 {[%clk 0:01:44.9]} 59. Ke4 {[%clk 0:02:35.9]} 59... Ke7 {[%clk
0:01:43.6]} 60. Kxf3 {[%clk 0:02:34.2]} 60... Rh4 {[%clk 0:01:42.5]} 61. Ra6
{[%clk 0:02:31.9]} 61... Rb4 {[%clk 0:01:40.6]} 62. Ke3 {[%clk 0:02:30.2]} 62...
Rc4 {[%clk 0:01:39.7]} 63. Kd3 {[%clk 0:02:29]} 63... Rh4 {[%clk 0:01:38.3]} 64.
Rf6 {[%clk 0:02:27.3]} 64... Rg4 {[%clk 0:01:36.6]} 65. Ke3 {[%clk 0:02:26.3]}
65... Rh4 {[%clk 0:01:35.8]} 66. Rf4 {[%clk 0:02:25.6]} 66... Rxf4 {[%clk
0:01:34.4]} 67. Kxf4 {[%clk 0:02:25.1]} 67... Ke6 {[%clk 0:01:34]} 68. Ke4
{[%clk 0:02:24.7]} 68... Ke7 {[%clk 0:01:32.6]} 69. Kd5 {[%clk 0:02:18.7]} 69...
Kd7 {[%clk 0:01:31.5]} 70. e6+ {[%clk 0:02:17.5]} 70... Ke7 {[%clk 0:01:30.7]}
71. Ke5 {[%clk 0:02:17.2]} 71... Ke8 {[%clk 0:01:30]} 72. Kf6 {[%clk 0:02:12.2]}
1/2-1/2

[Event "Live Chess"]
[Site "Chess.com"]
[Date "2023.05.21"]
[Round "-"]
[White "LL220284LL"]
[Black "raminguy"]
[Result "1-0"]
[WhiteElo "2324"]
[BlackElo "1969"]
[TimeControl "300"]
[EndTime "3:41:07 PDT"]
[Termination "LL220284LL won by resignation"]

1. c4 {[%clk 0:04:58.9]} 1... e6 {[%clk 0:04:59.1]} 2. g3 {[%clk 0:04:58.2]}
2... d5 {[%clk 0:04:58.9]} 3. Bg2 {[%clk 0:04:57.8]} 3... Nf6 {[%clk 0:04:57.8]}
4. Nf3 {[%clk 0:04:57.4]} 4... Be7 {[%clk 0:04:57.5]} 5. O-O {[%clk 0:04:56.1]}
5... O-O {[%clk 0:04:57.1]} 6. b3 {[%clk 0:04:55.2]} 6... a6 {[%clk 0:04:56.8]}
7. Bb2 {[%clk 0:04:53.8]} 7... dxc4 {[%clk 0:04:56.4]} 8. bxc4 {[%clk 0:04:52]}
8... c5 {[%clk 0:04:56.2]} 9. Nc3 {[%clk 0:04:50.5]} 9... Nc6 {[%clk 0:04:55.8]}
10. e3 {[%clk 0:04:49.6]} 10... e5 {[%clk 0:04:54.7]} 11. Nd5 {[%clk 0:04:46]}
11... Bd6 {[%clk 0:04:50.6]} 12. d3 {[%clk 0:04:38.9]} 12... Bb8 {[%clk
0:04:46.2]} 13. Nd2 {[%clk 0:04:35.3]} 13... Re8 {[%clk 0:04:43]} 14. Rb1 {[%clk
0:04:31.7]} 14... Nb4 {[%clk 0:04:35.8]} 15. Nxb4 {[%clk 0:04:27.9]} 15... cxb4
{[%clk 0:04:35.7]} 16. Ne4 {[%clk 0:04:26.7]} 16... Nxe4 {[%clk 0:04:33]} 17.
Bxe4 {[%clk 0:04:25.7]} 17... a5 {[%clk 0:04:28.8]} 18. Bg2 {[%clk 0:04:15.4]}
18... Bf5 {[%clk 0:04:18.9]} 19. Bxb7 {[%clk 0:04:09.1]} 19... Ba7 {[%clk
0:04:11.7]} 20. Be4 {[%clk 0:04:02.6]} 20... Bh3 {[%clk 0:04:08.6]} 21. Re1
{[%clk 0:04:00.5]} 21... Qf6 {[%clk 0:03:52.9]} 22. a3 {[%clk 0:03:52.2]} 22...
Rab8 {[%clk 0:03:49]} 23. axb4 {[%clk 0:03:48.6]} 23... axb4 {[%clk 0:03:48.9]}
24. Qf3 {[%clk 0:03:46.7]} 24... Qxf3 {[%clk 0:03:44.9]} 25. Bxf3 {[%clk
0:03:46.6]} 25... Bf5 {[%clk 0:03:41.3]} 26. Rbd1 {[%clk 0:03:42.4]} 26... f6
{[%clk 0:03:35.6]} 27. d4 {[%clk 0:03:39.1]} 27... exd4 {[%clk 0:03:33]} 28.
exd4 {[%clk 0:03:39]} 28... Kf8 {[%clk 0:03:26.9]} 29. c5 {[%clk 0:03:28.1]}
29... Rbd8 {[%clk 0:03:22.1]} 30. Bc6 {[%clk 0:03:22.3]} 30... Rxe1+ {[%clk
0:03:19.4]} 31. Rxe1 {[%clk 0:03:22.2]} 31... h6 {[%clk 0:03:04.9]} 32. Ra1
{[%clk 0:03:17.9]} 32... Bb8 {[%clk 0:02:56.1]} 33. Ra8 {[%clk 0:03:15.7]} 33...
Bh3 {[%clk 0:02:53.5]} 34. d5 {[%clk 0:03:09.5]} 1-0

[Event "Live Chess"]
[Site "Chess.com"]
[Date "2023.05.21"]
[Round "-"]
[White "JanMur7"]
[Black "Ferrarifan27"]
[Result "1-0"]
[WhiteElo "1986"]
[BlackElo "2085"]
[TimeControl "300"]
[EndTime "3:41:15 PDT"]
[Termination "JanMur7 won by checkmate"]

1. e4 {[%clk 0:04:55.2]} 1... c5 {[%clk 0:04:58.6]} 2. Nf3 {[%clk 0:04:53.9]}
2... d6 {[%clk 0:04:57]} 3. c3 {[%clk 0:04:53.5]} 3... Nc6 {[%clk 0:04:53.5]} 4.
Be2 {[%clk 0:04:51.6]} 4... Nf6 {[%clk 0:04:52]} 5. d4 {[%clk 0:04:51.1]} 5...
cxd4 {[%clk 0:04:49.8]} 6. cxd4 {[%clk 0:04:49.5]} 6... Nxe4 {[%clk 0:04:48.7]}
7. d5 {[%clk 0:04:48.9]} 7... Nxf2 {[%clk 0:04:43.6]} 8. Kxf2 {[%clk 0:04:45]}
8... Qb6+ {[%clk 0:04:41.9]} 9. Be3 {[%clk 0:04:41]} 9... Qxb2 {[%clk 0:04:41]}
10. dxc6 {[%clk 0:04:38.8]} 10... Qxa1 {[%clk 0:04:38.7]} 11. cxb7 {[%clk
0:04:27.3]} 11... Bxb7 {[%clk 0:04:37.6]} 12. Qa4+ {[%clk 0:04:26.2]} 12... Kd8
{[%clk 0:04:33.9]} 13. Bd4 {[%clk 0:04:21.3]} 13... Bc6 {[%clk 0:04:13]} 14.
Qa5+ {[%clk 0:04:17.5]} 14... Kd7 {[%clk 0:04:09.4]} 15. Bxa1 {[%clk 0:04:15.6]}
15... e5 {[%clk 0:04:04.7]} 16. Bb5 {[%clk 0:04:13.3]} 16... Bxb5 {[%clk
0:04:01.7]} 17. Qxb5+ {[%clk 0:04:11.6]} 17... Ke6 {[%clk 0:03:59.1]} 18. Rd1
{[%clk 0:04:05.8]} 18... Be7 {[%clk 0:03:54.5]} 19. Qd5+ {[%clk 0:04:02]} 19...
Kf6 {[%clk 0:03:52.3]} 20. Bxe5+ {[%clk 0:03:55.5]} 20... dxe5 {[%clk
0:03:51.4]} 21. Qxe5+ {[%clk 0:03:55.4]} 21... Kg6 {[%clk 0:03:50.7]} 22. Qxe7
{[%clk 0:03:51.6]} 22... f6 {[%clk 0:03:49.6]} 23. Rd7 {[%clk 0:03:49.4]} 23...
Rhg8 {[%clk 0:03:47]} 24. Qf7+ {[%clk 0:03:46.2]} 24... Kh6 {[%clk 0:03:45.3]}
25. Rd5 {[%clk 0:03:43.3]} 25... g6 {[%clk 0:03:42.5]} 26. Qxf6 {[%clk
0:03:36.6]} 26... Rgf8 {[%clk 0:03:41]} 27. Rh5+ {[%clk 0:03:35.6]} 27... Kxh5
{[%clk 0:03:39.2]} 28. Qh4# {[%clk 0:03:35.2]} 1-0

[Event "Live Chess"]
[Site "Chess.com"]
[Date "2023.05.21"]
[Round "-"]
[White "Rusty_Bridges"]
[Black "Doge_Dandolo"]
[Result "0-1"]
[WhiteElo "1502"]
[BlackElo "1874"]
[TimeControl "300"]
[EndTime "3:41:37 PDT"]
[Termination "Doge_Dandolo won by resignation"]

1. e4 {[%clk 0:04:58.7]} 1... c6 {[%clk 0:04:58.5]} 2. f4 {[%clk 0:04:51.1]}
2... d5 {[%clk 0:04:56.5]} 3. e5 {[%clk 0:04:49.6]} 3... Nh6 {[%clk 0:04:55.5]}
4. d4 {[%clk 0:04:43.1]} 4... Bg4 {[%clk 0:04:52.5]} 5. Be2 {[%clk 0:04:40.9]}
5... Bxe2 {[%clk 0:04:51]} 6. Qxe2 {[%clk 0:04:37.1]} 6... Nf5 {[%clk
0:04:48.6]} 7. c3 {[%clk 0:04:34.6]} 7... h5 {[%clk 0:04:47.1]} 8. Nf3 {[%clk
0:04:30.9]} 8... e6 {[%clk 0:04:46]} 9. O-O {[%clk 0:04:28.4]} 9... c5 {[%clk
0:04:44.2]} 10. Nbd2 {[%clk 0:04:23.2]} 10... Nc6 {[%clk 0:04:42.5]} 11. Nb3
{[%clk 0:04:17.2]} 11... b6 {[%clk 0:04:38.3]} 12. a3 {[%clk 0:04:14]} 12... Qc7
{[%clk 0:04:31.1]} 13. Be3 {[%clk 0:04:11]} 13... Be7 {[%clk 0:04:27.7]} 14. Bf2
{[%clk 0:04:07.7]} 14... a5 {[%clk 0:04:22.2]} 15. dxc5 {[%clk 0:04:04.8]} 15...
bxc5 {[%clk 0:04:19.4]} 16. Nxc5 {[%clk 0:03:42.9]} 16... O-O {[%clk 0:04:09.4]}
17. Nd3 {[%clk 0:03:34.7]} 17... Rab8 {[%clk 0:04:04.8]} 18. Nd4 {[%clk
0:03:30.6]} 18... Ncxd4 {[%clk 0:04:01.2]} 19. cxd4 {[%clk 0:03:29.2]} 19... Rb3
{[%clk 0:03:50.2]} 20. Rfc1 {[%clk 0:03:22.2]} 20... Qb7 {[%clk 0:03:48.5]} 21.
Rab1 {[%clk 0:03:17.5]} 21... Rb8 {[%clk 0:03:33.6]} 22. Qxh5 {[%clk 0:02:59.9]}
22... Rxd3 {[%clk 0:03:24.8]} 23. g4 {[%clk 0:02:44.9]} 23... Nxd4 {[%clk
0:03:10.7]} 24. Bxd4 {[%clk 0:02:39.4]} 24... Rxd4 {[%clk 0:03:09.2]} 25. f5
{[%clk 0:02:38.6]} 25... Qb6 {[%clk 0:03:04]} 26. Kh1 {[%clk 0:02:36.7]} 26...
exf5 {[%clk 0:02:56.5]} 27. gxf5 {[%clk 0:02:34.8]} 27... Qh6 {[%clk 0:02:53.7]}
28. Qf3 {[%clk 0:02:30.1]} 28... Rd2 {[%clk 0:02:40.6]} 29. Qg3 {[%clk
0:02:26.2]} 29... Rb3 {[%clk 0:02:35.6]} 30. Qg1 {[%clk 0:02:21.7]} 30... Rh3
{[%clk 0:02:29.9]} 0-1

[Event "Live Chess"]
[Site "Chess.com"]
[Date "2023.05.21"]
[Round "-"]
[White "wot-not"]
[Black "hturner40"]
[Result "1-0"]
[WhiteElo "1570"]
[BlackElo "1800"]
[TimeControl "300"]
[EndTime "3:41:41 PDT"]
[Termination "wot-not won by resignation"]

1. d4 {[%clk 0:04:57.8]} 1... Nf6 {[%clk 0:04:57.8]} 2. c4 {[%clk 0:04:56.9]}
2... Nc6 {[%clk 0:04:54.3]} 3. Nc3 {[%clk 0:04:56.4]} 3... e5 {[%clk 0:04:52.5]}
4. d5 {[%clk 0:04:55.4]} 4... Ne7 {[%clk 0:04:51.4]} 5. e4 {[%clk 0:04:53.2]}
5... Ng6 {[%clk 0:04:49.9]} 6. Bg5 {[%clk 0:04:52]} 6... Bc5 {[%clk 0:04:46.5]}
7. Bd3 {[%clk 0:04:43.9]} 7... h6 {[%clk 0:04:40.7]} 8. Bd2 {[%clk 0:04:36.2]}
8... a5 {[%clk 0:04:26.9]} 9. Nge2 {[%clk 0:04:26.1]} 9... Ng4 {[%clk
0:04:21.7]} 10. O-O {[%clk 0:04:21.1]} 10... Qh4 {[%clk 0:04:18]} 11. h3 {[%clk
0:04:18]} 11... Nxf2 {[%clk 0:04:16.1]} 12. Rxf2 {[%clk 0:04:12.6]} 12... Qxf2+
{[%clk 0:04:14]} 13. Kh1 {[%clk 0:04:10.7]} 13... Nh4 {[%clk 0:04:09.2]} 14. Qg1
{[%clk 0:04:00.5]} 14... d6 {[%clk 0:04:06.8]} 15. Qxf2 {[%clk 0:03:54.9]} 15...
Bxf2 {[%clk 0:04:01]} 16. Nb5 {[%clk 0:03:52.5]} 16... Bb6 {[%clk 0:03:58.2]}
17. Rf1 {[%clk 0:03:37.9]} 17... O-O {[%clk 0:03:53.6]} 18. Kh2 {[%clk
0:03:30.6]} 18... Bd7 {[%clk 0:03:37.9]} 19. a4 {[%clk 0:03:24.4]} 19... f5
{[%clk 0:03:16.1]} 20. exf5 {[%clk 0:03:10.2]} 20... Bxf5 {[%clk 0:03:02.2]} 21.
Bxf5 {[%clk 0:03:09]} 21... Nxf5 {[%clk 0:03:00.8]} 22. Rf3 {[%clk 0:02:56.1]}
22... c6 {[%clk 0:02:27.8]} 23. dxc6 {[%clk 0:02:45.4]} 23... bxc6 {[%clk
0:02:25.9]} 24. Nbc3 {[%clk 0:02:40.4]} 24... Nd4 {[%clk 0:02:24.3]} 25. Rg3
{[%clk 0:02:33.8]} 25... Rf2 {[%clk 0:02:20.5]} 26. Nxd4 {[%clk 0:02:15.1]}
26... Bxd4 {[%clk 0:01:52.1]} 27. Bxh6 {[%clk 0:02:10]} 27... Rf7 {[%clk
0:01:44.7]} 28. Ne4 {[%clk 0:02:00.5]} 28... Kf8 {[%clk 0:01:38.4]} 29. Nxd6
{[%clk 0:01:58.3]} 29... gxh6 {[%clk 0:01:33.7]} 30. Nxf7 {[%clk 0:01:57]} 30...
Kxf7 {[%clk 0:01:32.7]} 31. Rf3+ {[%clk 0:01:49.3]} 31... Ke7 {[%clk 0:01:31.6]}
32. b3 {[%clk 0:01:42.3]} 32... Rf8 {[%clk 0:01:29.7]} 33. Rg3 {[%clk 0:01:40]}
33... e4 {[%clk 0:01:26.2]} 34. Rg4 {[%clk 0:01:31.8]} 34... e3 {[%clk
0:01:19.7]} 35. Rxd4 {[%clk 0:01:30.5]} 35... Kf7 {[%clk 0:01:08.5]} 36. Re4
{[%clk 0:01:27.8]} 36... Re8 {[%clk 0:01:07]} 37. Rxe8 {[%clk 0:01:25.8]} 37...
Kxe8 {[%clk 0:01:06]} 38. Kg1 {[%clk 0:01:25.3]} 38... Ke7 {[%clk 0:01:00.1]}
39. Kf1 {[%clk 0:01:24.8]} 39... Kd6 {[%clk 0:00:58.9]} 40. Ke2 {[%clk
0:01:24.5]} 40... Kc5 {[%clk 0:00:58]} 41. g4 {[%clk 0:01:17.9]} 41... Kb4
{[%clk 0:00:56.5]} 42. h4 {[%clk 0:01:17.4]} 42... Kxb3 {[%clk 0:00:55.4]} 43.
g5 {[%clk 0:01:17.1]} 43... hxg5 {[%clk 0:00:49.7]} 44. hxg5 {[%clk 0:01:16.4]}
1-0

[Event "Live Chess"]
[Site "Chess.com"]
[Date "2023.05.21"]
[Round "-"]
[White "TheSmoulderingMaster"]
[Black "LiamBellwood"]
[Result "0-1"]
[WhiteElo "1671"]
[BlackElo "1934"]
[TimeControl "300"]
[EndTime "3:42:03 PDT"]
[Termination "LiamBellwood won by resignation"]

1. e4 {[%clk 0:04:58.7]} 1... e6 {[%clk 0:04:59.9]} 2. d4 {[%clk 0:04:57.4]}
2... d5 {[%clk 0:04:58.2]} 3. Nc3 {[%clk 0:04:56.7]} 3... Nf6 {[%clk 0:04:52.9]}
4. Bg5 {[%clk 0:04:55.4]} 4... h6 {[%clk 0:04:51.8]} 5. Bh4 {[%clk 0:04:53.6]}
5... g5 {[%clk 0:04:49.5]} 6. Bg3 {[%clk 0:04:52.3]} 6... dxe4 {[%clk
0:04:49.4]} 7. Be5 {[%clk 0:04:50.4]} 7... Bg7 {[%clk 0:04:41.3]} 8. Nxe4 {[%clk
0:04:45]} 8... O-O {[%clk 0:04:32.1]} 9. Nxf6+ {[%clk 0:04:41.3]} 9... Bxf6
{[%clk 0:04:32]} 10. Bxf6 {[%clk 0:04:40.6]} 10... Qxf6 {[%clk 0:04:31.9]} 11.
Nf3 {[%clk 0:04:39.3]} 11... b6 {[%clk 0:04:29]} 12. Qd2 {[%clk 0:04:37.1]}
12... Bb7 {[%clk 0:04:28.3]} 13. Be2 {[%clk 0:04:35.1]} 13... Nc6 {[%clk
0:04:20.3]} 14. O-O-O {[%clk 0:04:33.1]} 14... Ne7 {[%clk 0:04:12.2]} 15. Rhg1
{[%clk 0:04:29.3]} 15... Rad8 {[%clk 0:04:06.6]} 16. g4 {[%clk 0:04:20.1]} 16...
c5 {[%clk 0:04:02.3]} 17. Ne5 {[%clk 0:04:12.8]} 17... Rxd4 {[%clk 0:03:53.9]}
18. Qe3 {[%clk 0:04:07.3]} 18... Nd5 {[%clk 0:03:29.2]} 19. Qg3 {[%clk
0:03:58.6]} 19... Nf4 {[%clk 0:03:22.2]} 20. Bb5 {[%clk 0:03:41.7]} 20... Qxe5
{[%clk 0:03:18.8]} 21. h4 {[%clk 0:03:39.5]} 21... Rb4 {[%clk 0:03:13.4]} 0-1